[Event "Early-Titled-Tuesday-Blitz-May-14-2024"]
[Site "Chess.com"]
[Date "2024.05.14"]
[Round "4"]
[White "cukus"]
[Black "Kazmin_Semyon"]
[Result "0-1"]
[WhiteElo "2375"]
[BlackElo "2590"]
[TimeControl "180+1"]
[EndTime "8:40:25 PDT"]
[Termination "Kazmin_Semyon won by resignation"]

1. e4 {[%clk 0:03:00.9]} 1... e6 {[%clk 0:02:59.7]} 2. d4 {[%clk 0:03:00.6]}
2... d5 {[%clk 0:03:00.6]} 3. exd5 {[%clk 0:03:00.1]} 3... exd5 {[%clk
0:03:01.5]} 4. Nf3 {[%clk 0:02:59.7]} 4... Nc6 {[%clk 0:03:02.2]} 5. c3 {[%clk
0:02:59.3]} 5... Bg4 {[%clk 0:03:02.6]} 6. h3 {[%clk 0:02:58.8]} 6... Bh5 {[%clk
0:03:02.7]} 7. Bb5 {[%clk 0:02:53.9]} 7... Bd6 {[%clk 0:03:02.7]} 8. Qe2+ {[%clk
0:02:48.3]} 8... Ne7 {[%clk 0:03:03.3]} 9. O-O {[%clk 0:02:45.1]} 9... a6 {[%clk
0:03:01.8]} 10. Bd3 {[%clk 0:02:43.5]} 10... Qd7 {[%clk 0:03:01.5]} 11. b4
{[%clk 0:02:36.7]} 11... O-O-O {[%clk 0:02:58.7]} 12. a4 {[%clk 0:02:35.6]}
12... Nb8 {[%clk 0:02:49.9]} 13. b5 {[%clk 0:02:34.2]} 13... a5 {[%clk
0:02:49.6]} 14. c4 {[%clk 0:02:29.9]} 14... Ng6 {[%clk 0:02:48.4]} 15. c5 {[%clk
0:02:26.4]} 15... Nh4 {[%clk 0:02:32.1]} 16. Nxh4 {[%clk 0:01:43.4]} 16... Bxe2
{[%clk 0:02:28.9]} 17. Bf5 {[%clk 0:01:44]} 17... Bxf1 {[%clk 0:02:16.6]} 18.
cxd6 {[%clk 0:01:29.2]} 18... Bc4 {[%clk 0:02:08.2]} 19. dxc7 {[%clk 0:01:19.9]}
19... Kxc7 {[%clk 0:02:09.1]} 20. Bxd7 {[%clk 0:01:11.4]} 20... Nxd7 {[%clk
0:02:10]} 21. Nf5 {[%clk 0:00:55.3]} 21... g6 {[%clk 0:01:57.2]} 22. Bf4+ {[%clk
0:00:54]} 22... Kb6 {[%clk 0:01:56.9]} 23. Nd6 {[%clk 0:00:53.6]} 23... Rhf8
{[%clk 0:01:48.5]} 24. Nc3 {[%clk 0:00:48.1]} 24... Nf6 {[%clk 0:01:46.5]} 25.
Nxc4+ {[%clk 0:00:36.4]} 25... dxc4 {[%clk 0:01:45.4]} 26. Bg5 {[%clk
0:00:36.9]} 26... Nd5 {[%clk 0:01:22.9]} 27. Bxd8+ {[%clk 0:00:35.4]} 27... Rxd8
{[%clk 0:01:23.8]} 28. Ne4 {[%clk 0:00:29.7]} 28... Nf4 {[%clk 0:01:17.8]} 29.
Ng5 {[%clk 0:00:20.8]} 29... c3 {[%clk 0:01:04.8]} 30. Kf1 {[%clk 0:00:19.1]}
30... Rxd4 {[%clk 0:01:01.6]} 31. Nf3 {[%clk 0:00:16.8]} 31... Rc4 {[%clk
0:00:57.1]} 32. g3 {[%clk 0:00:16.5]} 32... c2 {[%clk 0:00:55.9]} 33. Rc1 {[%clk
0:00:05.1]} 33... Nd3 {[%clk 0:00:55.3]} 34. Nd2 {[%clk 0:00:05.8]} 34... Rc8
{[%clk 0:00:53]} 35. Nb3 {[%clk 0:00:05.1]} 35... Nxc1 {[%clk 0:00:52.7]} 36.
Nxc1 {[%clk 0:00:06]} 36... Rd8 {[%clk 0:00:53.1]} 37. Ke2 {[%clk 0:00:06.1]}
37... Rd1 {[%clk 0:00:53.7]} 0-1

[Event "Early-Titled-Tuesday-Blitz-May-14-2024"]
[Site "Chess.com"]
[Date "2024.05.14"]
[Round "4"]
[White "KanalSzachowy"]
[Black "Kors67"]
[Result "0-1"]
[WhiteElo "2403"]
[BlackElo "2256"]
[TimeControl "180+1"]
[EndTime "8:40:25 PDT"]
[Termination "Kors67 won on time"]

1. e4 {[%clk 0:03:00.9]} 1... d6 {[%clk 0:03:00.1]} 2. d4 {[%clk 0:02:58.2]}
2... Nf6 {[%clk 0:03:00.5]} 3. Nc3 {[%clk 0:02:57.8]} 3... g6 {[%clk 0:03:00.8]}
4. f4 {[%clk 0:02:57.2]} 4... Bg7 {[%clk 0:03:00.8]} 5. Nf3 {[%clk 0:02:57.8]}
5... c5 {[%clk 0:03:01.2]} 6. dxc5 {[%clk 0:02:56.4]} 6... Qa5 {[%clk
0:03:01.1]} 7. Bd3 {[%clk 0:02:56.2]} 7... Qxc5 {[%clk 0:03:01.3]} 8. Qe2 {[%clk
0:02:56.8]} 8... Bg4 {[%clk 0:03:01.7]} 9. Be3 {[%clk 0:02:56]} 9... Qa5 {[%clk
0:03:02.1]} 10. O-O {[%clk 0:02:55.3]} 10... Nc6 {[%clk 0:03:02.3]} 11. h3
{[%clk 0:02:54.5]} 11... Bxf3 {[%clk 0:03:02.6]} 12. Qxf3 {[%clk 0:02:54.9]}
12... O-O {[%clk 0:03:02.9]} 13. Rad1 {[%clk 0:02:50.5]} 13... Nd7 {[%clk
0:03:00.9]} 14. Bd2 {[%clk 0:02:36.2]} 14... Nc5 {[%clk 0:02:59.3]} 15. Bc4
{[%clk 0:02:27.7]} 15... Nd4 {[%clk 0:02:47.4]} 16. Qg3 {[%clk 0:01:26.1]} 16...
Qb4 {[%clk 0:02:35.4]} 17. Bb3 {[%clk 0:01:04.4]} 17... Qxc3 {[%clk 0:02:30.8]}
18. Qh4 {[%clk 0:00:28.9]} 18... Ne2+ {[%clk 0:02:17.9]} 19. Kh2 {[%clk
0:00:24.8]} 19... Qf6 {[%clk 0:02:11.3]} 20. Qf2 {[%clk 0:00:19.9]} 20... Nxf4
{[%clk 0:01:55.6]} 21. Bxf4 {[%clk 0:00:18.9]} 21... Qxb2 {[%clk 0:01:48.4]} 22.
Be3 {[%clk 0:00:13.9]} 22... Nxe4 {[%clk 0:01:45.7]} 23. Qf3 {[%clk 0:00:11.7]}
23... Nf6 {[%clk 0:01:40.7]} 24. Qxb7 {[%clk 0:00:11.1]} 24... a5 {[%clk
0:01:16]} 25. Bd4 {[%clk 0:00:10]} 25... Qa3 {[%clk 0:01:11.2]} 26. Qxe7 {[%clk
0:00:09.8]} 26... a4 {[%clk 0:01:05.6]} 27. Bc3 {[%clk 0:00:06]} 27... axb3
{[%clk 0:01:01.6]} 28. Bxf6 {[%clk 0:00:05.7]} 28... bxc2 {[%clk 0:00:54]} 29.
Rxd6 {[%clk 0:00:02.4]} 29... Bxf6 {[%clk 0:00:47.3]} 30. Rdxf6 {[%clk
0:00:02.1]} 30... Qxe7 {[%clk 0:00:40.9]} 0-1

[Event "Early-Titled-Tuesday-Blitz-May-14-2024"]
[Site "Chess.com"]
[Date "2024.05.14"]
[Round "4"]
[White "NinoMaisuradze"]
[Black "MathiasWomacka"]
[Result "1-0"]
[WhiteElo "2357"]
[BlackElo "2525"]
[TimeControl "180+1"]
[EndTime "8:40:26 PDT"]
[Termination "NinoMaisuradze won by resignation"]

1. d4 {[%clk 0:03:00.1]} 1... Nf6 {[%clk 0:02:59.1]} 2. Nf3 {[%clk 0:02:59.9]}
2... e6 {[%clk 0:02:59.4]} 3. e3 {[%clk 0:02:57.7]} 3... c5 {[%clk 0:02:58.4]}
4. Bd3 {[%clk 0:02:56.2]} 4... d5 {[%clk 0:02:58.2]} 5. b3 {[%clk 0:02:56.1]}
5... Nc6 {[%clk 0:02:58.1]} 6. a3 {[%clk 0:02:55.9]} 6... cxd4 {[%clk
0:02:56.4]} 7. exd4 {[%clk 0:02:55.9]} 7... Be7 {[%clk 0:02:56.2]} 8. O-O {[%clk
0:02:55.5]} 8... O-O {[%clk 0:02:55.8]} 9. Re1 {[%clk 0:02:55.6]} 9... b6 {[%clk
0:02:52.4]} 10. Bg5 {[%clk 0:02:50.7]} 10... Bb7 {[%clk 0:02:49.6]} 11. Nbd2
{[%clk 0:02:49.7]} 11... h6 {[%clk 0:02:36.7]} 12. Bh4 {[%clk 0:02:46.9]} 12...
Nh5 {[%clk 0:02:36.1]} 13. Bg3 {[%clk 0:02:40.8]} 13... Nxg3 {[%clk 0:02:34]}
14. hxg3 {[%clk 0:02:40.3]} 14... Bf6 {[%clk 0:02:31.8]} 15. c3 {[%clk 0:02:39]}
15... Rc8 {[%clk 0:02:29.2]} 16. a4 {[%clk 0:02:34.3]} 16... Qd6 {[%clk
0:02:16.4]} 17. b4 {[%clk 0:02:32.6]} 17... a5 {[%clk 0:02:04.3]} 18. b5 {[%clk
0:02:31.3]} 18... Ne7 {[%clk 0:02:04.1]} 19. Rc1 {[%clk 0:02:29.6]} 19... Rc7
{[%clk 0:01:59.8]} 20. c4 {[%clk 0:02:26.1]} 20... Rfc8 {[%clk 0:01:46.7]} 21.
Ne5 {[%clk 0:01:40.1]} 21... g6 {[%clk 0:01:36.9]} 22. Qf3 {[%clk 0:01:32.3]}
22... Kg7 {[%clk 0:01:25.8]} 23. Qe3 {[%clk 0:01:29.2]} 23... Nf5 {[%clk
0:01:12.7]} 24. Bxf5 {[%clk 0:01:24]} 24... exf5 {[%clk 0:01:13.6]} 25. c5
{[%clk 0:01:15.6]} 25... bxc5 {[%clk 0:01:11.8]} 26. dxc5 {[%clk 0:01:16.5]}
26... Rxc5 {[%clk 0:01:11.5]} 27. Rxc5 {[%clk 0:01:17.4]} 27... Qxc5 {[%clk
0:01:07.7]} 28. Qxc5 {[%clk 0:01:13.9]} 28... Rxc5 {[%clk 0:01:08.6]} 29. Nd7
{[%clk 0:01:14]} 29... Rc2 {[%clk 0:01:05.9]} 30. Nxf6 {[%clk 0:01:10.8]} 30...
Kxf6 {[%clk 0:00:53.5]} 31. Nb3 {[%clk 0:01:10]} 31... Rc4 {[%clk 0:00:53.4]}
32. Ra1 {[%clk 0:01:07.7]} 32... d4 {[%clk 0:00:52.4]} 33. Nxa5 {[%clk
0:01:07.6]} 33... Rc7 {[%clk 0:00:50.9]} 34. Nxb7 {[%clk 0:01:07.4]} 34... Rxb7
{[%clk 0:00:51.1]} 35. Rb1 {[%clk 0:00:52.2]} 35... Ke5 {[%clk 0:00:45.5]} 36.
a5 {[%clk 0:00:51.8]} 36... Kd5 {[%clk 0:00:41.3]} 37. a6 {[%clk 0:00:51.8]}
37... Rb8 {[%clk 0:00:29.5]} 38. b6 {[%clk 0:00:48.1]} 38... Kc6 {[%clk
0:00:29.3]} 39. b7 {[%clk 0:00:48]} 39... Kc7 {[%clk 0:00:26.8]} 40. a7 {[%clk
0:00:43.6]} 40... Rxb7 {[%clk 0:00:27]} 41. Rc1+ {[%clk 0:00:43.4]} 1-0

[Event "Early-Titled-Tuesday-Blitz-May-14-2024"]
[Site "Chess.com"]
[Date "2024.05.14"]
[Round "4"]
[White "ClauAmura"]
[Black "Cherepov_Alexej"]
[Result "0-1"]
[WhiteElo "2198"]
[BlackElo "2420"]
[TimeControl "180+1"]
[EndTime "8:40:26 PDT"]
[Termination "Cherepov_Alexej won by resignation"]

1. d4 {[%clk 0:03:00.9]} 1... d5 {[%clk 0:02:58.8]} 2. Bg5 {[%clk 0:02:59]} 2...
f6 {[%clk 0:02:57.2]} 3. Bh4 {[%clk 0:02:57.8]} 3... Nh6 {[%clk 0:02:57.2]} 4.
f3 {[%clk 0:02:53.7]} 4... Nf5 {[%clk 0:02:56.1]} 5. Bf2 {[%clk 0:02:54.4]} 5...
c5 {[%clk 0:02:49.7]} 6. dxc5 {[%clk 0:02:51.9]} 6... e5 {[%clk 0:02:48.4]} 7.
e4 {[%clk 0:02:51.9]} 7... dxe4 {[%clk 0:02:45]} 8. Qxd8+ {[%clk 0:02:51.5]}
8... Kxd8 {[%clk 0:02:45.9]} 9. fxe4 {[%clk 0:02:48.5]} 9... Nd4 {[%clk
0:02:45.8]} 10. Bd3 {[%clk 0:02:31.4]} 10... Bxc5 {[%clk 0:02:36.8]} 11. Nc3
{[%clk 0:02:26.3]} 11... Nbc6 {[%clk 0:02:27.3]} 12. Nge2 {[%clk 0:02:16.4]}
12... Be6 {[%clk 0:02:22.9]} 13. Na4 {[%clk 0:02:08.6]} 13... Bd6 {[%clk
0:01:56.8]} 14. c3 {[%clk 0:02:04.1]} 14... Nxe2 {[%clk 0:01:56.2]} 15. Bxe2
{[%clk 0:02:00.4]} 15... b6 {[%clk 0:01:51.4]} 16. b4 {[%clk 0:01:49.3]} 16...
Ke7 {[%clk 0:01:44.1]} 17. O-O {[%clk 0:01:47.4]} 17... Rac8 {[%clk 0:01:38.9]}
18. Rfd1 {[%clk 0:01:43.3]} 18... Nd8 {[%clk 0:01:29.1]} 19. Ba6 {[%clk
0:01:41.2]} 19... Rc7 {[%clk 0:01:23.7]} 20. Rd3 {[%clk 0:01:33]} 20... Bc4
{[%clk 0:01:21.9]} 21. Bxc4 {[%clk 0:01:32.5]} 21... Rxc4 {[%clk 0:01:22.8]} 22.
Re1 {[%clk 0:01:28.5]} 22... Ne6 {[%clk 0:01:15.7]} 23. Nb2 {[%clk 0:01:26.8]}
23... Rc6 {[%clk 0:01:05.5]} 24. a3 {[%clk 0:01:24.4]} 24... Rhc8 {[%clk
0:01:04.1]} 25. c4 {[%clk 0:01:23.2]} 25... Nf4 {[%clk 0:01:02.1]} 26. Rd2
{[%clk 0:01:15.2]} 26... Ke6 {[%clk 0:00:58.5]} 27. Red1 {[%clk 0:01:14.6]}
27... Be7 {[%clk 0:00:54.6]} 28. Rd7 {[%clk 0:00:54.6]} 28... R6c7 {[%clk
0:00:53.7]} 29. Rxc7 {[%clk 0:00:52.8]} 29... Rxc7 {[%clk 0:00:54.6]} 30. Kf1
{[%clk 0:00:51.2]} 30... h5 {[%clk 0:00:53.9]} 31. g3 {[%clk 0:00:48.5]} 31...
Ng6 {[%clk 0:00:50.8]} 32. Ke2 {[%clk 0:00:48.4]} 32... Nh8 {[%clk 0:00:45.4]}
33. Rd5 {[%clk 0:00:48.3]} 33... Nf7 {[%clk 0:00:44.3]} 34. Kd3 {[%clk
0:00:40.3]} 34... Ng5 {[%clk 0:00:43.4]} 35. c5 {[%clk 0:00:37.1]} 35... bxc5
{[%clk 0:00:37.5]} 36. bxc5 {[%clk 0:00:34.8]} 36... Nxe4 {[%clk 0:00:36.1]} 0-1

[Event "Early-Titled-Tuesday-Blitz-May-14-2024"]
[Site "Chess.com"]
[Date "2024.05.14"]
[Round "4"]
[White "ViIIagra"]
[Black "AnishOnYoutube"]
[Result "0-1"]
[WhiteElo "2844"]
[BlackElo "3021"]
[TimeControl "180+1"]
[EndTime "8:40:28 PDT"]
[Termination "AnishOnYoutube won by resignation"]

1. e4 {[%clk 0:02:58.1]} 1... c5 {[%clk 0:03:00.2]} 2. Nf3 {[%clk 0:02:53.6]}
2... d6 {[%clk 0:03:00.7]} 3. Bc4 {[%clk 0:02:53.7]} 3... Nf6 {[%clk 0:03:00.6]}
4. d3 {[%clk 0:02:54]} 4... e6 {[%clk 0:03:01.2]} 5. O-O {[%clk 0:02:53.5]} 5...
Be7 {[%clk 0:03:01.7]} 6. a3 {[%clk 0:02:49.8]} 6... O-O {[%clk 0:03:01.7]} 7.
Re1 {[%clk 0:02:48.9]} 7... a6 {[%clk 0:02:55.9]} 8. Ba2 {[%clk 0:02:46.5]} 8...
b5 {[%clk 0:02:43.6]} 9. c3 {[%clk 0:02:46.7]} 9... Bb7 {[%clk 0:02:43.4]} 10.
Nbd2 {[%clk 0:02:46.8]} 10... Nbd7 {[%clk 0:02:43.4]} 11. Nf1 {[%clk 0:02:46]}
11... c4 {[%clk 0:02:17.9]} 12. Ng3 {[%clk 0:02:36.4]} 12... cxd3 {[%clk
0:02:01.5]} 13. Qxd3 {[%clk 0:02:37.3]} 13... Qc7 {[%clk 0:01:57.7]} 14. Nd4
{[%clk 0:02:22.8]} 14... Ne5 {[%clk 0:01:50.9]} 15. Qe2 {[%clk 0:02:22.3]} 15...
Nc4 {[%clk 0:01:48]} 16. Bg5 {[%clk 0:02:18.7]} 16... Rac8 {[%clk 0:01:43.8]}
17. Rad1 {[%clk 0:02:10.4]} 17... h6 {[%clk 0:01:41.7]} 18. Bc1 {[%clk
0:02:06.6]} 18... Rfe8 {[%clk 0:01:17.7]} 19. Bb1 {[%clk 0:02:05.9]} 19... Bf8
{[%clk 0:01:16.7]} 20. Nh5 {[%clk 0:02:01.8]} 20... Nxh5 {[%clk 0:01:15.2]} 21.
Qxh5 {[%clk 0:02:02.7]} 21... Qc5 {[%clk 0:01:15.5]} 22. Qh3 {[%clk 0:01:52.8]}
22... Ne5 {[%clk 0:01:09.7]} 23. Qg3 {[%clk 0:01:25.9]} 23... Kh8 {[%clk
0:01:07.3]} 24. f4 {[%clk 0:01:17.1]} 24... Nc4 {[%clk 0:01:06.3]} 25. Kh1
{[%clk 0:01:13.6]} 25... e5 {[%clk 0:01:01.6]} 26. Nf5 {[%clk 0:00:55.4]} 26...
Re6 {[%clk 0:00:59.4]} 27. Ba2 {[%clk 0:00:37.9]} 27... Rce8 {[%clk 0:00:51.4]}
28. fxe5 {[%clk 0:00:18.9]} 28... Rxe5 {[%clk 0:00:51.5]} 29. Bxc4 {[%clk
0:00:17]} 29... bxc4 {[%clk 0:00:50.8]} 30. Bf4 {[%clk 0:00:14.7]} 30... Rxe4
{[%clk 0:00:46.8]} 31. Rxe4 {[%clk 0:00:13.9]} 31... Rxe4 {[%clk 0:00:34.9]} 32.
Bxd6 {[%clk 0:00:11.5]} 32... Qxf5 {[%clk 0:00:31.1]} 33. Bxf8 {[%clk
0:00:11.8]} 33... Rg4 {[%clk 0:00:28.5]} 0-1

[Event "Early-Titled-Tuesday-Blitz-May-14-2024"]
[Site "Chess.com"]
[Date "2024.05.14"]
[Round "4"]
[White "DrVelja"]
[Black "Yaacovn"]
[Result "1-0"]
[WhiteElo "2968"]
[BlackElo "2808"]
[TimeControl "180+1"]
[EndTime "8:40:30 PDT"]
[Termination "DrVelja won by resignation"]

1. e4 {[%clk 0:03:00.9]} 1... c6 {[%clk 0:03:00]} 2. d4 {[%clk 0:03:00.9]} 2...
d5 {[%clk 0:03:00.9]} 3. e5 {[%clk 0:03:01.5]} 3... Bf5 {[%clk 0:03:00.8]} 4. h4
{[%clk 0:03:02.2]} 4... Qb6 {[%clk 0:03:00.6]} 5. g4 {[%clk 0:02:54.1]} 5... Bd7
{[%clk 0:02:57.8]} 6. c4 {[%clk 0:02:54.7]} 6... e6 {[%clk 0:02:35.3]} 7. Nc3
{[%clk 0:02:53.3]} 7... c5 {[%clk 0:02:32.9]} 8. Nf3 {[%clk 0:02:43.2]} 8...
cxd4 {[%clk 0:01:40.6]} 9. Nxd4 {[%clk 0:02:33.7]} 9... Bc5 {[%clk 0:01:27.3]}
10. Be3 {[%clk 0:02:33.8]} 10... Nc6 {[%clk 0:01:24]} 11. Na4 {[%clk 0:01:46.1]}
11... Qa5+ {[%clk 0:01:20.6]} 12. Bd2 {[%clk 0:01:46.5]} 12... Bb4 {[%clk
0:01:20.7]} 13. Nb5 {[%clk 0:01:47]} 13... Bxd2+ {[%clk 0:01:17.7]} 14. Qxd2
{[%clk 0:01:47.9]} 14... Qxa4 {[%clk 0:01:17.6]} 15. Nc7+ {[%clk 0:01:48.5]}
15... Kd8 {[%clk 0:01:09.1]} 16. Nxa8 {[%clk 0:01:49]} 16... Qb4 {[%clk
0:01:09.4]} 17. cxd5 {[%clk 0:01:39.1]} 17... Qe4+ {[%clk 0:01:05.9]} 18. Qe3
{[%clk 0:01:36.4]} 18... Qxh1 {[%clk 0:01:02.7]} 19. dxc6 {[%clk 0:01:34.3]}
19... Qd5 {[%clk 0:01:03.6]} 20. cxd7 {[%clk 0:01:11.8]} 20... Qa5+ {[%clk
0:01:02.3]} 21. Qc3 {[%clk 0:00:45.4]} 21... Qxc3+ {[%clk 0:00:21.4]} 22. bxc3
{[%clk 0:00:46.3]} 22... Ne7 {[%clk 0:00:20.3]} 23. Rd1 {[%clk 0:00:38.2]} 23...
Nd5 {[%clk 0:00:19.7]} 24. c4 {[%clk 0:00:36.3]} 24... Nc3 {[%clk 0:00:10.1]}
25. Rd3 {[%clk 0:00:31.9]} 25... Nxa2 {[%clk 0:00:09.7]} 26. Ra3 {[%clk
0:00:32.3]} 26... Nb4 {[%clk 0:00:09.6]} 27. Rxa7 {[%clk 0:00:32.9]} 27... Kxd7
{[%clk 0:00:09.7]} 28. Rxb7+ {[%clk 0:00:32.9]} 28... Kc6 {[%clk 0:00:10.1]} 29.
Rxb4 {[%clk 0:00:33.5]} 29... Rxa8 {[%clk 0:00:10.8]} 30. Bg2+ {[%clk
0:00:34.1]} 30... Kc5 {[%clk 0:00:11]} 31. Bxa8 {[%clk 0:00:32.6]} 31... Kxb4
{[%clk 0:00:11.1]} 32. Ke2 {[%clk 0:00:27.7]} 32... Kxc4 {[%clk 0:00:11.1]} 33.
Ke3 {[%clk 0:00:28.3]} 1-0

[Event "Early-Titled-Tuesday-Blitz-May-14-2024"]
[Site "Chess.com"]
[Date "2024.05.14"]
[Round "4"]
[White "Orujov2008"]
[Black "santosalberto1987"]
[Result "0-1"]
[WhiteElo "2742"]
[BlackElo "2589"]
[TimeControl "180+1"]
[EndTime "8:40:33 PDT"]
[Termination "santosalberto1987 won on time"]

1. e4 {[%clk 0:03:00.9]} 1... e6 {[%clk 0:02:49.7]} 2. d4 {[%clk 0:03:00.3]}
2... d5 {[%clk 0:02:49.7]} 3. Nd2 {[%clk 0:03:00.1]} 3... c5 {[%clk 0:02:49.1]}
4. exd5 {[%clk 0:03:00.2]} 4... Qxd5 {[%clk 0:02:49.1]} 5. Ngf3 {[%clk
0:03:00.4]} 5... cxd4 {[%clk 0:02:48.8]} 6. g3 {[%clk 0:03:00.2]} 6... Nf6
{[%clk 0:02:42.2]} 7. Bg2 {[%clk 0:03:00.3]} 7... Nc6 {[%clk 0:02:42.4]} 8. O-O
{[%clk 0:03:00.1]} 8... Be7 {[%clk 0:02:36.9]} 9. Nb3 {[%clk 0:02:56]} 9... Qd8
{[%clk 0:02:31.7]} 10. Nfxd4 {[%clk 0:02:54.5]} 10... Nxd4 {[%clk 0:02:31.8]}
11. Qxd4 {[%clk 0:02:55.4]} 11... Qxd4 {[%clk 0:02:31.6]} 12. Nxd4 {[%clk
0:02:56.3]} 12... O-O {[%clk 0:02:28.6]} 13. c4 {[%clk 0:02:56.1]} 13... Rd8
{[%clk 0:02:17.7]} 14. Nb3 {[%clk 0:02:52]} 14... a5 {[%clk 0:02:05.9]} 15. Be3
{[%clk 0:02:46.3]} 15... a4 {[%clk 0:02:05.4]} 16. Nc5 {[%clk 0:02:46]} 16...
Nd7 {[%clk 0:01:43.6]} 17. Nd3 {[%clk 0:02:01.1]} 17... Ra5 {[%clk 0:01:13.7]}
18. Rfd1 {[%clk 0:01:48.8]} 18... b6 {[%clk 0:01:04.4]} 19. b4 {[%clk
0:01:20.9]} 19... axb3 {[%clk 0:01:01.5]} 20. axb3 {[%clk 0:01:21.8]} 20... Nc5
{[%clk 0:00:17.4]} 21. Bxc5 {[%clk 0:00:38.4]} 21... Rxa1 {[%clk 0:00:13.9]} 22.
Rxa1 {[%clk 0:00:38.3]} 22... bxc5 {[%clk 0:00:13.6]} 23. Ne5 {[%clk 0:00:28.4]}
23... Bf6 {[%clk 0:00:13.4]} 0-1

[Event "Early-Titled-Tuesday-Blitz-May-14-2024"]
[Site "Chess.com"]
[Date "2024.05.14"]
[Round "4"]
[White "Aswathchess"]
[Black "dontcatchmeifyoucant"]
[Result "1-0"]
[WhiteElo "2652"]
[BlackElo "2441"]
[TimeControl "180+1"]
[EndTime "8:40:33 PDT"]
[Termination "Aswathchess won by resignation"]

1. Nf3 {[%clk 0:03:00.9]} 1... Nf6 {[%clk 0:02:59.8]} 2. c4 {[%clk 0:02:56.7]}
2... e6 {[%clk 0:02:58.8]} 3. Nc3 {[%clk 0:02:57.4]} 3... b6 {[%clk 0:02:58.3]}
4. d4 {[%clk 0:02:57.6]} 4... Bb4 {[%clk 0:02:58.3]} 5. Bg5 {[%clk 0:02:55.3]}
5... Bb7 {[%clk 0:02:57.7]} 6. e3 {[%clk 0:02:54.8]} 6... h6 {[%clk 0:02:57.8]}
7. Bh4 {[%clk 0:02:53.3]} 7... g5 {[%clk 0:02:57.8]} 8. Bg3 {[%clk 0:02:53.5]}
8... Ne4 {[%clk 0:02:57.9]} 9. Qc2 {[%clk 0:02:53.6]} 9... d6 {[%clk 0:02:52.5]}
10. Bd3 {[%clk 0:02:53.3]} 10... f5 {[%clk 0:02:51.5]} 11. O-O {[%clk
0:02:40.3]} 11... Bxc3 {[%clk 0:02:50.4]} 12. bxc3 {[%clk 0:02:40.9]} 12... Nd7
{[%clk 0:02:46.1]} 13. d5 {[%clk 0:02:34.7]} 13... Ndc5 {[%clk 0:02:32.7]} 14.
Nd4 {[%clk 0:02:30.7]} 14... Qf6 {[%clk 0:02:17.2]} 15. Bxe4 {[%clk 0:02:03.9]}
15... fxe4 {[%clk 0:01:52.4]} 16. f3 {[%clk 0:02:03.4]} 16... O-O-O {[%clk
0:01:31.4]} 17. fxe4 {[%clk 0:01:57.9]} 17... Qg6 {[%clk 0:01:31.4]} 18. e5
{[%clk 0:01:34.9]} 18... Qxc2 {[%clk 0:01:27.1]} 19. Nxc2 {[%clk 0:01:35.8]}
19... exd5 {[%clk 0:01:24]} 20. exd6 {[%clk 0:01:08.2]} 20... cxd6 {[%clk
0:01:23.4]} 21. cxd5 {[%clk 0:01:03.5]} 21... Bxd5 {[%clk 0:01:23.2]} 22. Nd4
{[%clk 0:00:55.7]} 22... Ne4 {[%clk 0:01:20.2]} 23. c4 {[%clk 0:00:46]} 23...
Bxc4 {[%clk 0:01:06.9]} 24. Rac1 {[%clk 0:00:44.8]} 24... d5 {[%clk 0:01:07.3]}
25. Nb5 {[%clk 0:00:18.6]} 25... a6 {[%clk 0:00:52.1]} 26. Na7+ {[%clk
0:00:18.3]} 26... Kb7 {[%clk 0:00:50.7]} 27. Rf7+ {[%clk 0:00:18.7]} 27... Ka8
{[%clk 0:00:39]} 28. Nc6 {[%clk 0:00:19.1]} 1-0

[Event "Early-Titled-Tuesday-Blitz-May-14-2024"]
[Site "Chess.com"]
[Date "2024.05.14"]
[Round "4"]
[White "ItsCheckM8Mate"]
[Black "colegiodemadrid"]
[Result "0-1"]
[WhiteElo "2293"]
[BlackElo "2563"]
[TimeControl "180+1"]
[EndTime "8:40:37 PDT"]
[Termination "colegiodemadrid won by resignation"]

1. d4 {[%clk 0:02:56.6]} 1... d5 {[%clk 0:02:59.5]} 2. Nc3 {[%clk 0:02:56.7]}
2... c6 {[%clk 0:02:57.5]} 3. Bf4 {[%clk 0:02:56.3]} 3... Bf5 {[%clk 0:02:56.7]}
4. f3 {[%clk 0:02:51.4]} 4... Qb6 {[%clk 0:02:56.2]} 5. e4 {[%clk 0:02:42.6]}
5... dxe4 {[%clk 0:02:39.4]} 6. fxe4 {[%clk 0:02:42.8]} 6... Bg6 {[%clk
0:02:40]} 7. Nf3 {[%clk 0:02:17.8]} 7... Nf6 {[%clk 0:02:39.8]} 8. Bd3 {[%clk
0:02:14.2]} 8... Qxb2 {[%clk 0:02:38.3]} 9. Na4 {[%clk 0:01:53.9]} 9... Qb4+
{[%clk 0:02:32.1]} 10. c3 {[%clk 0:01:53.8]} 10... Qa5 {[%clk 0:02:32.5]} 11.
O-O {[%clk 0:01:47.3]} 11... e6 {[%clk 0:02:26.3]} 12. c4 {[%clk 0:01:33.7]}
12... Nxe4 {[%clk 0:02:10.6]} 13. Ne5 {[%clk 0:01:23.8]} 13... Nf6 {[%clk
0:02:04.5]} 14. Nxg6 {[%clk 0:01:09.9]} 14... hxg6 {[%clk 0:02:04.1]} 15. Rb1
{[%clk 0:01:09.4]} 15... Qd8 {[%clk 0:01:39.7]} 16. Rxb7 {[%clk 0:01:06.7]}
16... Qxd4+ {[%clk 0:01:39.6]} 17. Kh1 {[%clk 0:01:04.5]} 17... Nbd7 {[%clk
0:01:39]} 18. Qf3 {[%clk 0:00:51.6]} 18... Rc8 {[%clk 0:01:17]} 19. Re1 {[%clk
0:00:44]} 19... Be7 {[%clk 0:01:11.8]} 20. Rd1 {[%clk 0:00:24.8]} 20... e5
{[%clk 0:00:59.4]} 21. Bg5 {[%clk 0:00:14.3]} 21... e4 {[%clk 0:00:53.3]} 22.
Bxf6 {[%clk 0:00:07.6]} 22... Nxf6 {[%clk 0:00:45.1]} 23. Qe2 {[%clk 0:00:03.1]}
23... Qe5 {[%clk 0:00:39.2]} 24. g3 {[%clk 0:00:02.1]} 24... Kf8 {[%clk
0:00:28.9]} 25. Bc2 {[%clk 0:00:02.3]} 25... Qxg3 {[%clk 0:00:24.5]} 26. Rg1
{[%clk 0:00:02]} 26... Qf3+ {[%clk 0:00:24]} 27. Qxf3 {[%clk 0:00:02.3]} 27...
exf3 {[%clk 0:00:24.9]} 28. Rf1 {[%clk 0:00:02.4]} 28... Bd6 {[%clk 0:00:21]}
29. Rxf3 {[%clk 0:00:02.2]} 29... Rxh2+ {[%clk 0:00:20.6]} 30. Kg1 {[%clk
0:00:02.8]} 30... Rxc2 {[%clk 0:00:20.8]} 0-1